bitfinex/quotes_SOLUSD_20220302
["timestamp","ask_amount","ask_price","bid_price","bid_amount"]
[1646237054334,12.66936937,102.37,102.18,142.35138203]
[1646237054527,198.31642671,102.38,102.19,115.59]
[1646237054528,11.73,102.38,102.19,115.59]
[1646237054731,5.0,102.31,102.19,192.28888094]
[1646237054928,5.0,102.31,102.2,3.911]
[1646237055143,5.0,102.31,102.22,97.86]
[1646237055326,5.0,102.31,102.24,14.6706]
[1646237055528,5.0,102.31,102.25,42.83215493]
[1646237055727,10.37726181,102.33,102.25,42.83215493]
[1646237056331,50.81415554,102.37,102.25,57.50095493]
[1646237056528,29.0204,102.37,102.25,57.50095493]
[1646237056727,14.6669,102.39,102.25,57.50095493]
[1646237056929,14.6669,102.39,102.25,57.75095493]
[1646237057128,14.6669,102.39,102.25,69.48095493]
[1646237057330,11.85971692,102.38,102.26,3.908]
[1646237057528,11.85971692,102.38,102.27,47.90589239]
[1646237057931,2.04517175,102.37,102.27,47.90589239]
[1646237058429,2.04517175,102.39,102.27,47.90589239]
[1646237058630,5.0,102.39,102.27,47.90589239]
[1646237058830,7.04517175,102.39,102.27,47.90589239]
[1646237059029,21.79375554,102.38,102.27,47.90589239]
[1646237059231,13.05885606,102.37,102.27,47.90589239]
[1646237059431,15.10402781,102.37,102.27,47.90589239]
[1646237059630,48.87778335,102.37,102.27,47.90589239]
[1646237059833,0.86206651,102.35,102.27,47.90589239]
[1646237060234,2.90200024,102.35,102.27,47.90589239]
[1646237060429,8.15200024,102.35,102.27,47.90589239]
[1646237060629,21.96263373,102.35,102.27,47.90589239]
[1646237060830,5.0,102.35,102.27,47.90589239]
[1646237061431,14.67,102.37,102.27,47.90589239]
[1646237061632,12.70760818,102.36,102.27,47.90589239]
[1646237062034,5.0,102.34,102.27,47.90589239]
[1646237062236,6.46331439,102.34,102.27,47.90589239]
[1646237062832,14.7133,102.42,102.28,180.0]
[1646237063035,35.18465589,102.46,102.35,2.58648839]
[1646237063232,0.4903239,102.47,102.35,2.58648839]
[1646237063432,0.4903239,102.47,102.36,6.0]
[1646237063631,0.4903239,102.47,102.36,143.71317229]
[1646237063831,0.4903239,102.47,102.37,83.99786413]
[1646237064033,0.4903239,102.47,102.38,6.0]
[1646237064232,0.4903239,102.47,102.39,46.13609363]
[1646237064435,0.4903239,102.47,102.35,6.49048839]
[1646237064833,0.4903239,102.47,102.35,2.58648839]
[1646237065532,0.4903239,102.47,102.36,44.76332526]
[1646237066033,0.4903239,102.47,102.36,45.01332526]
[1646237066333,0.4903239,102.47,102.36,84.23724421]
[1646237066533,0.4903239,102.47,102.38,51.627902]
[1646237066734,0.4903239,102.47,102.38,51.877902]
[1646237066934,0.4903239,102.47,102.38,94.02012095]
[1646237067133,0.4903239,102.47,102.39,103.86]
[1646237067334,0.4903239,102.47,102.39,115.84]
[1646237067533,0.4903239,102.47,102.4,31.39791895]
[1646237067735,0.4903239,102.47,102.41,6.0]
[1646237067934,0.4903239,102.47,102.42,58.52530413]
[1646237068132,0.4903239,102.47,102.42,58.77530413]
[1646237068535,0.64632335,102.46,102.42,58.77530413]
[1646237068935,0.00632335,102.46,102.42,58.77530413]
[1646237069336,0.00632335,102.46,102.42,171.27700413]
[1646237069636,0.00632335,102.46,102.43,6.0]
[1646237069835,0.00632335,102.46,102.44,2.14345297]
[1646237070436,0.00632335,102.46,102.38,20.634]
[1646237070637,0.00632335,102.46,102.38,8.904]
[1646237070838,0.00632335,102.46,102.39,43.05448572]
[1646237073240,0.00632335,102.46,102.36,11.73]
[1646237073439,0.00632335,102.46,102.35,27.8143]
[1646237073639,5.0,102.45,102.35,27.8143]
[1646237073838,0.25,102.45,102.35,27.8143]
[1646237074243,0.25,102.45,102.36,60.38659833]
[1646237074443,0.25,102.45,102.35,3.904]
[1646237074644,0.30305039,102.44,102.35,3.904]
[1646237074843,12.03305039,102.44,102.35,3.904]
[1646237075041,12.28305039,102.44,102.35,3.904]
[1646237075445,110.14305039,102.44,102.35,0.0001]
[1646237075642,0.68674058,102.41,102.24,72.0779]
[1646237075842,0.68674058,102.39,102.24,23.5391]
[1646237076043,0.68674058,102.39,102.24,121.3991]
[1646237076044,13.3825245,102.38,102.24,121.3991]
[1646237076244,13.6325245,102.38,102.24,147.58478565]
[1646237076643,12.91652631,102.37,102.25,158.69560605]
[1646237076844,5.0,102.37,102.25,217.31560605]
[1646237077043,14.7155,102.41,102.27,156.48]
[1646237077247,14.7155,102.41,102.29,97.86]
[1646237077661,11.73,102.44,102.3,23.63664562]
[1646237077861,11.30402312,102.43,102.31,59.9238353]
[1646237078065,16.80804706,102.43,102.31,59.9238353]
[1646237078263,2.61689945,102.4,102.31,59.9238353]
[1646237078462,2.86689945,102.4,102.31,59.9238353]
[1646237078663,2.61689945,102.4,102.31,59.9238353]
[1646237079263,1.76586475,102.43,102.31,157.7838353]
[1646237079463,11.73,102.45,102.31,160.58287533]
[1646237079666,3.907,102.46,102.32,103.86]
[1646237079864,5.0,102.42,102.32,198.09664562]
[1646237080063,5.0,102.42,102.34,97.86]
[1646237080268,5.0,102.42,102.34,58.08190259]
[1646237080572,5.0,102.42,102.34,155.94190259]
[1646237080964,0.4903239,102.47,102.34,155.94190259]
[1646237081167,0.4903239,102.47,102.35,103.86]
[1646237081366,0.4903239,102.47,102.35,104.11]
[1646237081769,14.15185194,102.47,102.36,151.66145136]
[1646237081966,14.15185194,102.47,102.36,151.91145136]
[1646237082166,14.15185194,102.47,102.36,53.80145136]
[1646237082367,14.40185194,102.47,102.36,53.80145136]
[1646237082566,3.904,102.46,102.36,53.80145136]
[1646237082766,4.154,102.46,102.36,53.80145136]
[1646237082967,0.25,102.46,102.36,53.80145136]
[1646237083770,16.19321593,102.45,102.31,26.39]
[1646237083970,16.44321593,102.45,102.31,26.39]
[1646237084171,0.25,102.45,102.31,2.54904003]
[1646237084371,0.28842401,102.43,102.3,24.8028]
[1646237084670,14.6682,102.39,102.28,55.60297062]
[1646237084872,14.9182,102.39,102.28,55.60297062]
[1646237085171,0.25,102.39,102.28,55.60297062]
[1646237085371,5.25,102.39,102.28,55.60297062]
[1646237085676,0.25,102.39,102.28,55.60297062]
[1646237086070,16.16051043,102.38,102.28,55.60297062]
[1646237086270,14.9197,102.38,102.28,55.60297062]
[1646237086672,14.7082,102.41,102.28,55.60297062]
[1646237086872,16.24012765,102.41,102.28,55.60297062]
[1646237087074,68.6009,102.41,102.28,55.60297062]
[1646237087272,82.08872609,102.41,102.28,55.60297062]
[1646237088174,3.908,102.4,102.28,55.60297062]
[1646237088372,14.6693,102.38,102.28,55.60297062]
[1646237088572,14.9193,102.38,102.26,14.6673]
[1646237088774,16.73041137,102.38,102.24,2.54904003]
[1646237089374,0.26794228,102.37,102.23,70.21184562]
[1646237089575,0.26794228,102.37,102.24,48.17619021]
[1646237089776,14.6741,102.34,102.24,48.17619021]
[1646237089977,14.9241,102.34,102.24,48.17619021]
[1646237091177,14.9241,102.34,102.24,48.42619021]
[1646237091777,14.9241,102.34,102.24,48.17619021]
[1646237092177,16.38022205,102.34,102.24,48.17619021]
[1646237092378,16.38022205,102.34,102.21,61.7375]
[1646237092578,16.38022205,102.34,102.21,23.8613]
[1646237092782,16.38022205,102.34,102.18,46.797]
[1646237092783,0.29434963,102.33,102.18,46.797]
[1646237092980,16.4128013,102.29,102.18,46.797]
[1646237093181,16.4128013,102.29,102.15,19.6834]
[1646237093182,21.6628013,102.29,102.15,19.6834]
[1646237093383,1.67499874,102.28,102.16,62.66752516]
[1646237093580,13.3932532,102.28,102.16,62.66752516]
[1646237093780,13.3932532,102.28,102.16,58.75452516]
[1646237093981,0.25,102.28,102.16,88.85221081]
[1646237094280,1.76264093,102.32,102.16,152.54376187]
[1646237094479,18.6316,102.34,102.18,55.74022456]
[1646237094480,32.07765699,102.34,102.18,55.74022456]
[1646237094685,32.07765699,102.34,102.19,3.911]
[1646237094882,32.07765699,102.34,102.19,23.63664562]
[1646237095081,32.07765699,102.34,102.2,57.76879608]
[1646237095281,5.0,102.31,102.2,57.76879608]
[1646237095481,19.678,102.31,102.2,57.76879608]
[1646237095680,24.96679654,102.31,102.2,57.76879608]
[1646237095883,20.21679654,102.31,102.2,57.76879608]
[1646237096681,5.0,102.3,102.2,57.76879608]
[1646237096887,14.6835,102.27,102.2,57.76879608]
[1646237097086,6.0,102.26,102.2,57.76879608]
[1646237098085,6.0,102.26,102.16,56.50988565]
[1646237098285,6.0,102.26,102.16,21.39324003]
[1646237098490,20.6852,102.26,102.16,6.46104003]
[1646237098686,20.6852,102.26,102.15,23.829]
[1646237098886,20.6852,102.26,102.13,27.133]
[1646237099087,34.07113381,102.26,102.14,51.11185472]
[1646237100188,22.59113381,102.26,102.14,51.11185472]
[1646237100388,34.32113381,102.26,102.14,51.11185472]
[1646237100589,38.23313381,102.26,102.11,86.80484562]
[1646237100787,43.23313381,102.26,102.11,86.80484562]
[1646237100992,43.23313381,102.26,102.12,2.54904003]
[1646237101290,37.4152,102.26,102.13,27.55064562]
[1646237101488,37.4152,102.26,102.14,49.8810007]
[1646237101690,25.6852,102.26,102.14,76.06668635]
[1646237101889,19.6852,102.26,102.14,76.31668635]
[1646237102090,3.912,102.25,102.16,56.56654154]
[1646237102290,3.912,102.25,102.18,53.19470181]
[1646237102491,3.912,102.31,102.18,53.44470181]
[1646237102690,3.912,102.31,102.2,47.86044967]
[1646237102890,18.765,102.34,102.21,6.0]
[1646237103091,3.911,102.34,102.22,58.21901466]
[1646237103291,5.0,102.36,102.22,61.01805469]
[1646237103592,3.91,102.37,102.23,6.0]
[1646237103817,3.91,102.37,102.24,57.82680439]
[1646237103991,15.64,102.37,102.24,57.82680439]
[1646237104191,17.14628541,102.37,102.24,57.82680439]
[1646237104796,5.0,102.35,102.24,57.82680439]
[1646237104994,3.91,102.34,102.24,57.82680439]
[1646237105195,5.92937462,102.35,102.19,72.6316]
[1646237105396,110.99525698,102.34,102.19,23.8287]
[1646237105595,5.93037462,102.33,102.19,23.8287]
[1646237105795,14.6785,102.31,102.13,26.4164]
[1646237105996,15.87506115,102.3,102.13,39.0435]
[1646237106199,19.34860926,102.3,102.14,54.86887512]
[1646237106597,2.01937462,102.29,102.14,54.86887512]
[1646237106796,3.5,102.27,102.14,54.86887512]
[1646237106996,14.6879,102.25,102.14,54.86887512]
[1646237107198,14.9379,102.25,102.14,54.86887512]
[1646237107398,18.71819211,102.25,102.14,54.86887512]
[1646237107798,16.95727462,102.25,102.14,54.86887512]
[1646237107999,0.35299406,102.24,102.03,52.66634591]
[1646237108198,15.645,102.23,102.05,82.134]
[1646237108400,3.5,102.17,102.05,82.134]
[1646237108603,3.75,102.17,102.05,82.134]
[1646237109003,3.75,102.17,102.06,45.84896538]
[1646237109601,3.75,102.17,102.05,85.1022]
[1646237109602,16.71797462,102.16,102.05,24.749]
[1646237109801,30.51131813,102.16,102.05,24.749]
[1646237110001,15.81271813,102.16,102.05,24.749]
[1646237110202,15.81271813,102.16,102.02,23.5275]
[1646237110407,15.81271813,102.16,102.0,121.0526]
[1646237110408,2.01937462,102.15,102.0,121.0526]
[1646237110602,14.7038,102.12,102.03,45.57258091]
[1646237110802,14.7038,102.12,102.0,47.3398]
[1646237110803,11.73,102.11,102.0,47.3398]
[1646237111004,13.69794218,102.11,102.0,47.3398]
[1646237111207,15.7173168,102.11,102.0,47.3398]
[1646237111622,15.7173168,102.11,101.93,80.73396537]
[1646237111823,14.7114,102.07,101.96,58.76465702]
[1646237112121,14.7114,102.07,101.96,44.05415702]
[1646237112122,11.98,102.07,101.96,44.05415702]
[1646237112522,0.25,102.07,101.97,2.54904003]
[1646237112724,14.7156,102.04,101.98,46.59964652]
[1646237113022,14.9656,102.04,101.98,46.59964652]
[1646237113222,0.25,102.04,102.0,44.01552825]
[1646237114123,14.71,102.08,102.0,44.01552825]
[1646237114325,14.7352,102.12,102.0,44.01552825]
[1646237114326,26.4652,102.12,102.0,44.01552825]
[1646237114523,14.7352,102.12,102.02,43.48180765]
[1646237114722,24.1205328,102.18,102.02,43.48180765]
[1646237114923,11.73,102.14,102.02,46.28084768]
[1646237115127,14.7012,102.14,102.02,46.03084768]
[1646237115324,3.918,102.13,102.02,43.48180765]
[1646237115725,3.5,102.12,102.02,43.48180765]
[1646237116025,3.75,102.12,102.02,46.03084768]
[1646237116226,3.5,102.12,102.02,46.28084768]
[1646237116625,49.009,102.16,102.02,46.28084768]
[1646237116827,6.0,102.15,102.02,46.28084768]
[1646237117529,14.7014,102.14,102.02,60.73324768]
[1646237117728,18.2014,102.14,102.02,60.98324768]
[1646237117927,18.2014,102.14,102.02,43.48180765]
[1646237118128,3.91,102.13,102.02,43.48180765]
[1646237118530,3.5,102.14,102.02,43.48180765]
[1646237118828,14.7044,102.12,102.0,45.4727]
[1646237119030,26.6844,102.12,102.0,45.4727]
[1646237119235,3.894,102.11,102.0,45.4727]
[1646237119428,17.58900548,102.11,101.97,24.1738]
[1646237119627,41.36417403,102.11,101.97,74.14180975]
[1646237119828,14.7167,102.03,101.97,24.1738]
[1646237120030,14.9667,102.03,101.94,48.2273]
[1646237120228,0.25,102.03,101.92,24.3333]
[1646237120630,0.25,102.03,101.93,2.54904003]
[1646237120832,0.25,102.03,101.93,51.26237363]
[1646237121331,49.5528,102.06,101.95,57.78772419]
[1646237121535,6.0,102.05,101.95,57.78772419]
[1646237121730,6.0,102.05,101.97,53.14437842]
[1646237121930,14.7057,102.11,101.97,55.02794932]
[1646237122130,14.7057,102.11,101.99,43.05641465]
[1646237122331,14.7057,102.11,101.99,43.30641465]
[1646237122535,14.7057,102.11,102.0,2.54904003]
[1646237122732,14.7057,102.11,102.01,47.46378345]
[1646237123130,6.0,102.1,101.98,2.54904003]
[1646237123332,6.25,102.1,101.94,60.7612]
[1646237123529,6.25,102.1,101.96,2.54904003]
[1646237123731,6.25,102.1,101.97,3.92]
[1646237123929,6.25,102.1,101.96,7.54904003]
[1646237123930,13.17589887,102.09,101.96,7.54904003]
[1646237124135,14.7199,102.01,101.95,51.82386456]
[1646237124431,0.25,102.01,101.95,51.82386456]
[1646237125131,0.25,102.01,101.95,52.07386456]
[1646237125331,14.7159,102.04,101.95,54.37290459]
[1646237125532,14.9659,102.04,101.95,54.37290459]
[1646237125730,6.0,102.07,101.97,51.65588622]
[1646237125930,15.626,102.11,101.97,51.90588622]
[1646237126132,6.0,102.1,101.99,59.1038632]
[1646237126531,20.7069,102.1,101.99,61.90290323]
[1646237126733,20.7069,102.1,101.99,73.63290323]
[1646237126932,6.0,102.1,101.99,61.90290323]
[1646237127132,17.73,102.12,101.99,59.3538632]
[1646237127331,3.919,102.11,101.99,59.3538632]
[1646237127732,5.0,102.09,101.99,59.1038632]
[1646237128132,20.9,102.09,101.99,59.1038632]
[1646237128832,14.7113,102.07,101.99,59.1038632]
[1646237129033,14.9613,102.07,101.99,59.1038632]
[1646237129433,0.25,102.07,101.99,59.1038632]
[1646237130035,5.0,102.08,101.99,59.1038632]
[1646237130234,3.92,102.11,102.01,55.00169056]
[1646237130435,5.0,102.1,102.01,55.00169056]
[1646237131235,14.7065,102.1,102.01,55.00169056]
[1646237131435,30.6055,102.1,102.01,55.00169056]
[1646237131634,5.0,102.07,102.01,55.00169056]
[1646237131838,5.25,102.07,102.01,55.00169056]
[1646237132035,6.0,102.06,101.97,23.1909]
[1646237132238,6.25,102.06,101.96,24.9495]
[1646237133041,6.25,102.06,101.97,53.5032473]
[1646237133241,5.0,102.05,101.97,53.5032473]
[1646237133442,5.25,102.05,101.97,53.5032473]
[1646237133840,14.7159,102.03,101.97,53.5032473]
[1646237134042,14.9659,102.03,101.97,53.5032473]
[1646237134242,0.25,102.03,101.97,53.5032473]
[1646237134642,5.25,102.03,101.97,53.5032473]
[1646237135043,14.7152,102.04,101.97,53.5032473]
[1646237135244,15.629,102.09,101.97,53.7532473]
[1646237135445,5.0,102.05,101.97,212.78228733]
[1646237135844,5.0,102.05,101.97,154.16228733]
[1646237136044,5.0,102.05,101.97,107.26224669]
[1646237136444,5.0,102.05,101.97,184.52268733]
[1646237137149,14.7102,102.07,101.97,184.52268733]
[1646237137348,6.0,102.06,101.97,184.52268733]
[1646237137746,6.25,102.06,101.97,184.52268733]
[1646237137946,0.25,102.06,101.97,184.52268733]
[1646237138149,14.9602,102.07,101.97,184.52268733]
[1646237138547,0.25,102.07,101.97,243.14268733]
[1646237138749,14.9574,102.09,101.99,97.86]
[1646237138951,0.25,102.09,102.01,97.86]
[1646237139155,6.0,102.12,102.02,49.52385848]
[1646237139351,6.25,102.12,102.02,49.52385848]
[1646237139553,6.0,102.12,102.02,147.63385848]
[1646237139751,6.0,102.12,102.02,208.80289851]
[1646237139951,3.92,102.15,102.02,208.80289851]
[1646237140151,6.0,102.14,102.06,14.6983]
[1646237140352,6.0,102.14,102.07,56.64942477]
[1646237140754,3.916,102.17,102.07,56.64942477]
[1646237140954,6.0,102.16,102.07,56.64942477]
[1646237141154,14.6987,102.15,102.07,56.64942477]
[1646237141354,14.9487,102.15,102.07,56.64942477]
[1646237141555,14.6987,102.15,102.07,169.20612477]
[1646237141753,14.6987,102.15,102.07,169.45612477]
[1646237143054,14.6987,102.15,102.07,71.59612477]
[1646237143756,14.6987,102.15,102.07,71.34612477]
[1646237143957,14.9487,102.15,102.07,71.59612477]
[1646237144357,14.9487,102.15,102.07,56.64942477]
[1646237144863,14.7025,102.12,102.03,17.73]
[1646237145082,0.1991435,102.11,102.03,6.0]
[1646237145259,0.25,102.12,102.03,6.0]
[1646237145459,0.53184094,102.12,102.01,22.7303]
[1646237145658,49.2718,102.12,102.01,37.6848]
[1646237145858,49.2718,102.12,102.02,49.59778047]
[1646237146060,14.953,102.12,102.02,147.70778047]
[1646237146261,14.953,102.12,102.02,163.35578047]
[1646237146461,14.703,102.12,102.02,163.35578047]
[1646237146659,5.0,102.13,102.05,51.99690949]
[1646237146859,5.0,102.13,102.05,164.80650949]
[1646237147059,5.0,102.13,102.05,66.94650949]
[1646237147562,48.9997,102.16,102.05,66.94650949]
[1646237147961,6.0,102.15,102.05,66.94650949]
[1646237148162,14.7,102.14,102.05,164.80650949]
[1646237148363,0.25,102.14,102.05,164.80650949]
[1646237148564,6.0,102.15,102.05,167.35554952]
[1646237148764,6.0,102.15,102.05,179.08554952]
[1646237149166,6.0,102.15,102.05,237.70554952]
[1646237149367,3.916,102.2,102.05,250.6094012]
[1646237149566,52.8976,102.2,102.08,59.84766128]
[1646237149766,5.0,102.17,102.08,172.65226128]
[1646237150866,19.6951,102.17,102.08,74.79226128]
[1646237151067,19.9451,102.17,102.08,74.79226128]
[1646237152690,14.9451,102.17,102.08,74.79226128]
[1646237153190,14.9451,102.17,102.08,172.65226128]
[1646237153391,14.9451,102.17,102.08,184.38226128]
[1646237153796,14.9451,102.17,102.08,86.52226128]
[1646237153993,14.9451,102.17,102.08,74.79226128]
[1646237154893,14.9451,102.17,102.08,172.65226128]
[1646237155295,14.9451,102.17,102.08,74.79226128]
[1646237156093,14.6951,102.17,102.08,74.79226128]
[1646237156495,14.6951,102.17,102.08,74.54226128]
[1646237156693,14.6979,102.15,102.08,59.84766128]
[1646237157192,6.0,102.16,102.08,59.84766128]
[1646237157393,6.0,102.16,102.08,157.95766128]
[1646237157592,6.0,102.19,102.08,160.50670131]
[1646237157794,6.0,102.19,102.08,172.23670131]
[1646237158596,6.0,102.21,102.08,172.23670131]
[1646237158795,6.0,102.21,102.08,180.18970131]
[1646237158998,14.6929,102.19,102.11,59.99860556]
[1646237159195,54.9763,102.21,102.11,59.99860556]
[1646237159196,6.0,102.21,102.11,158.10860556]
[1646237159397,6.0,102.21,102.11,160.65764559]
[1646237159597,6.0,102.22,102.11,160.65764559]
[1646237159797,6.0,102.22,102.11,172.38764559]
[1646237159997,5.0,102.19,102.11,172.38764559]
[1646237160195,5.0,102.19,102.11,71.97860556]
[1646237160398,0.25,102.19,102.11,71.97860556]
[1646237160599,0.25,102.2,102.11,45.55800556]
[1646237160799,4.144,102.22,102.11,45.55800556]
[1646237160997,5.0,102.21,102.11,45.55800556]
[1646237161197,19.9403,102.21,102.11,143.41800556]
[1646237161402,14.9403,102.21,102.11,143.41800556]
[1646237161999,14.9403,102.21,102.11,158.10870556]
[1646237162399,19.9403,102.21,102.11,158.10870556]
[1646237162598,19.9403,102.21,102.11,60.24870556]
[1646237162999,19.9403,102.21,102.11,59.99870556]
[1646237163301,19.9403,102.21,102.11,45.30800556]
[1646237163498,21.50507002,102.21,102.11,45.30800556]
[1646237164098,6.0,102.2,102.08,47.6012]
[1646237164300,14.6971,102.18,102.08,47.6012]
[1646237164498,14.9471,102.18,102.08,47.6012]
[1646237165098,14.9471,102.18,102.09,56.87505922]
[1646237165703,19.9471,102.18,102.09,56.87505922]
[1646237166299,14.9471,102.18,102.09,56.87505922]
[1646237167203,19.9471,102.18,102.09,56.87505922]
[1646237167600,19.9471,102.18,102.09,57.12505922]
[1646237167799,19.9471,102.18,102.09,56.87505922]
[1646237168000,16.29247866,102.18,102.09,56.87505922]
[1646237168300,20.6952,102.17,102.09,56.87505922]
[1646237168505,20.9452,102.17,102.09,57.12505922]
[1646237169204,20.6952,102.17,102.09,57.12505922]
[1646237169404,14.6929,102.19,102.09,172.22699925]
[1646237169606,6.0,102.18,102.09,172.22699925]
[1646237170806,6.0,102.18,102.09,230.84699925]
[1646237171010,1.34537866,102.2,102.12,14.6882]
[1646237171207,6.0,102.19,102.11,154.17234441]
[1646237171411,6.0,102.19,102.11,154.42234441]
[1646237171808,6.34537866,102.21,102.11,154.42234441]
[1646237172010,6.0,102.2,102.11,154.17234441]
[1646237172211,14.692,102.19,102.11,56.31234441]
[1646237172510,14.942,102.19,102.11,56.31234441]
[1646237172711,19.942,102.19,102.11,56.31234441]
[1646237173310,14.942,102.19,102.11,56.31234441]
[1646237173811,19.942,102.19,102.11,56.31234441]
[1646237175310,19.692,102.19,102.11,56.31234441]
[1646237175511,5.0,102.19,102.11,154.42234441]
[1646237175710,16.03557866,102.21,102.11,154.42234441]
[1646237175911,21.03557866,102.21,102.11,154.42234441]
[1646237176712,21.28557866,102.21,102.11,56.56234441]
[1646237176913,17.75817809,102.21,102.11,56.31234441]
[1646237177112,1.34537866,102.2,102.11,56.31234441]
[1646237177313,1.59537866,102.2,102.11,56.31234441]
[1646237177513,14.6938,102.18,102.09,14.6925]
[1646237177714,14.9438,102.18,102.1,6.0]
[1646237177914,14.9438,102.18,102.08,47.6012]
[1646237177915,16.28917866,102.18,102.08,47.6012]
[1646237178114,17.88747127,102.18,102.08,47.6012]
[1646237178315,1.57791627,102.17,102.05,17.24724003]
[1646237178516,14.6988,102.15,102.07,49.48693947]
[1646237178716,14.9488,102.15,102.09,59.1167127]
[1646237179515,6.0,102.14,102.09,59.1167127]
[1646237179815,6.0,102.14,102.09,59.3667127]
[1646237180115,1.34537866,102.19,102.09,59.3667127]
[1646237180116,1.34537866,102.19,102.11,45.78835072]
[1646237180316,0.25,102.19,102.11,45.78835072]
[1646237180513,0.25,102.19,102.11,158.33895072]
[1646237180713,0.25,102.19,102.11,158.58895072]
[1646237181318,6.34537866,102.21,102.11,158.58895072]
[1646237182016,21.03557866,102.21,102.11,158.58895072]
[1646237182215,21.03557866,102.21,102.11,60.72895072]
[1646237182615,21.28557866,102.21,102.11,60.72895072]
[1646237182817,16.28557866,102.21,102.11,60.72895072]
[1646237183018,21.28557866,102.21,102.11,60.72895072]
[1646237183318,20.6912,102.2,102.11,60.72895072]
[1646237183517,20.9412,102.2,102.11,60.72895072]
[1646237184520,20.9412,102.2,102.11,158.58895072]
[1646237184823,6.25,102.2,102.11,158.58895072]
[1646237185422,0.25,102.2,102.13,97.86]
[1646237185623,14.9386,102.22,102.14,46.21743583]
[1646237185921,14.9386,102.22,102.14,144.32743583]
[1646237186545,1.34537866,102.23,102.14,144.32743583]
[1646237186745,1.34537866,102.23,102.14,159.01383583]
[1646237187147,1.34537866,102.24,102.14,159.01383583]
[1646237187351,6.0,102.23,102.14,61.15383583]
[1646237187545,22.03167866,102.23,102.14,46.46743583]
[1646237187947,20.6863,102.23,102.14,144.32743583]
[1646237188147,1.34537866,102.24,102.14,144.32743583]
[1646237188348,1.34537866,102.24,102.14,202.94743583]
[1646237188649,1.34537866,102.25,102.17,148.41928751]
[1646237188947,16.02837866,102.26,102.17,163.35078751]
[1646237189950,14.683,102.26,102.17,163.35078751]
[1646237190451,14.683,102.26,102.17,65.49078751]
[1646237190850,14.933,102.26,102.17,65.49078751]
[1646237191053,20.6839,102.25,102.17,50.80928751]
[1646237191254,20.9339,102.25,102.17,50.55928751]
[1646237192653,6.25,102.25,102.17,50.80928751]
[1646237192853,6.25,102.25,102.17,148.66928751]
[1646237193654,6.22203,102.25,102.17,148.66928751]
[1646237194053,6.22203,102.25,102.17,163.35068751]
[1646237194457,14.6822,102.26,102.17,163.35068751]
[1646237194655,5.0,102.27,102.17,236.24972754]
[1646237194856,1.34537866,102.29,102.2,46.6339769]
[1646237195056,1.34537866,102.3,102.2,144.7439769]
[1646237195254,1.29728866,102.31,102.2,232.31941693]
[1646237195455,5.0,102.32,102.2,269.01617109]
[1646237195654,5.0,102.32,102.2,246.28926861]
[1646237196155,5.0,102.32,102.23,47.27052838]
[1646237196356,19.6736,102.32,102.23,62.19412838]
[1646237196554,19.6736,102.32,102.23,61.94412838]
[1646237196759,14.6736,102.32,102.23,47.27052838]
[1646237197556,16.37637721,102.32,102.19,50.7134]
[1646237197756,0.33165097,102.31,102.19,50.9634]
[1646237197958,18.4103981,102.32,102.19,50.9634]
[1646237198159,14.6789,102.29,102.19,50.7134]
[1646237198360,14.9289,102.29,102.18,22.7815]
[1646237198559,17.06210556,102.29,102.19,44.59191323]
[1646237198956,28.45913705,102.29,102.19,44.59191323]
[1646237199158,5.0,102.26,102.19,44.59191323]
[1646237199360,14.6852,102.24,102.19,44.59191323]
[1646237199558,14.9352,102.24,102.19,44.59191323]
[1646237199758,14.9352,102.24,102.17,23.3762]
[1646237199959,14.9352,102.24,102.14,72.1865]
[1646237200159,14.9352,102.24,102.14,48.9325]
[1646237200661,14.85233,102.24,102.14,146.7925]
[1646237200859,14.85233,102.24,102.15,49.39828171]
[1646237201060,19.85233,102.24,102.15,49.64828171]
[1646237202359,14.85233,102.24,102.15,49.39828171]
[1646237202562,32.30726013,102.24,102.15,49.39828171]
[1646237202760,0.24043189,102.23,102.15,49.39828171]
[1646237203260,14.6897,102.21,102.15,49.39828171]
[1646237203458,14.9397,102.21,102.15,49.39828171]